fUSD/lending_fUSD_20250302
["ID","MTS","AMOUNT","RATE_DAILY","PERIOD"]
[355173295,1740943874744,-163.90460295,0.00026301,2]
[355173296,1740943874754,-500.0,0.00026301,2]
[355173297,1740943874764,-420.52733321,0.00026301,2]
[355173298,1740943874778,-79.47266679,0.00026301,2]
[355173299,1740943874789,-500.0,0.00026301,2]
[355173300,1740943874799,-500.0,0.00026301,2]
[355173301,1740943874809,-500.0,0.00026301,2]
[355173302,1740943874819,-619.01,0.00026301,2]
[355173303,1740943874829,-500.0,0.00026301,2]
[355173304,1740943874838,-500.0,0.00026301,2]
[355173305,1740943874848,-500.0,0.00026301,2]
[355173306,1740943874859,-500.0,0.00026301,2]
[355173307,1740943874870,-205.8,0.00026301,2]
[355173308,1740943874882,-500.0,0.00026301,2]
[355173309,1740943874893,-500.0,0.00026301,2]
[355173310,1740943874903,-500.0,0.00026301,2]
[355173311,1740943874914,-572.34,0.00026301,2]
[355173312,1740943874924,-500.48,0.00026301,2]
[355173313,1740943874934,-500.0,0.00026301,2]
[355173314,1740943874945,-431.29643842,0.00026301,2]
[355173321,1740944697946,151.0,0.00025,90]
[355173322,1740944755583,3059.54,0.00025,90]
[355173323,1740944849462,-450.0,0.00021277,2]
[355173324,1740944849486,-1619.96154162,0.000216,2]
[355173325,1740944849509,-967.67494131,0.00021683,2]
[355173326,1740944849532,-300.0,0.00021692,2]
[355173327,1740944849560,-6662.36351707,0.00021693,2]
[355173328,1740944862894,-10000.0,0.00021693,2]
[355173329,1740944875507,-10000.0,0.00021693,2]
[355173330,1740944884630,-300.0,0.00021692,2]
[355173331,1740944884654,-9700.0,0.00021693,2]
[355173332,1740944902271,-10000.0,0.00021693,2]
[355173333,1740944934802,250.0,0.00013,2]
[355173334,1740944935899,300.0,0.00015,2]
[355173356,1740945031705,-350.0,0.00017,2]
[355173358,1740945031715,-150.0,0.000187,2]
[355173360,1740945031725,-6320.3806964,0.00021693,2]
[355173361,1740945031735,-1382.85,0.00021893,2]
[355173362,1740945031745,-161.01,0.00021918,2]
[355173363,1740945031754,-1690.87090148,0.00022127,2]
[355173364,1740945031769,-410.37466481,0.00022463,2]
[355173365,1740945031779,-17773.90122015,0.00022627,2]
[355173366,1740945031816,-6126.09877985,0.00022627,2]
[355173367,1740945031826,-200.0,0.00022627,2]
[355173368,1740945031836,-728.71,0.00022627,2]
[355173369,1740945031846,-1667.77,0.00022647,2]
[355173370,1740945031857,-1028.76,0.00022667,2]
[355173371,1740945031867,-1723.42,0.00022669,2]
[355173372,1740945031877,-200.0,0.00022687,2]
[355173373,1740945031888,-150.0,0.00022687,7]
[355173374,1740945031898,-2751.0,0.00022769,2]
[355173375,1740945031910,-178.98,0.00022844,2]
[355173376,1740945031921,-450.0,0.00022859,2]
[355173377,1740945031931,-800.49,0.00022866,2]
[355173378,1740945031941,-1944.84437677,0.000229,3]
[355173379,1740945031952,-1502.91,0.00022905,2]
[355173380,1740945031962,-2000.0,0.00022928,2]
[355173381,1740945031972,-450.0,0.00022946,2]
[355173382,1740945031982,-150.0,0.00022953,2]
[355173383,1740945031993,-500.0,0.00022988,2]
[355173384,1740945032004,-500.0,0.00023073,2]
[355173385,1740945032014,-1944.84437666,0.00023141,3]
[355173386,1740945032024,-7668.56,0.00023162,2]
[355173387,1740945032033,-307.34290051,0.00023162,2]
[355173388,1740945032043,-52.1502463,0.00023343,2]
[355173396,1740945037628,-166.1397537,0.00023343,2]
[355173397,1740945037639,-200.0,0.00023372,2]
[355173398,1740945037649,-1944.84437666,0.00023383,3]
[355173399,1740945037659,-150.0,0.00023404,2]
[355173400,1740945037668,-1944.84437666,0.00023624,3]
[355173401,1740945037678,-1044.01,0.00023648,2]
[355173402,1740945037689,-628.33,0.00023703,2]
[355173403,1740945037698,-722.07,0.00023757,2]
[355173404,1740945037708,-641.73830917,0.00023772,2]
[355173405,1740945037720,-402.27169083,0.00023772,2]
[355173406,1740945037730,-267.2288,0.00023814,2]
[355173407,1740945037739,-657.254,0.00023814,2]
[355173408,1740945037749,-531.9788,0.00023814,2]
[355173409,1740945037759,-150.0,0.00023861,2]
[355173410,1740945037769,-1944.84437666,0.00023866,3]
[355173411,1740945037780,-1044.01,0.00023897,2]
[355173412,1740945037789,-2221.014,0.00023914,5]
[355173413,1740945037799,-200.791,0.00023914,5]
[355173414,1740945037811,-1000.0,0.00023986,2]
[355173415,1740945037821,-1580.60733242,0.00024007,2]
[355173444,1740945039549,-279.97966758,0.00024007,2]
[355173445,1740945039559,-1568.1875,0.00024007,2]
[355173446,1740945039572,-1044.01,0.00024021,2]
[355173447,1740945039582,-1394.4628,0.00024057,2]
[355173448,1740945039592,-313.3273,0.00024057,2]
[355173449,1740945039602,-1944.84437666,0.00024107,3]
[355173450,1740945039612,-160.23,0.00024136,2]
[355173451,1740945039622,-1044.01,0.00024146,2]
[355173452,1740945039632,-1382.85,0.00024157,2]
[355173453,1740945039642,-257.95,0.00024206,2]
[355173454,1740945039652,-1044.01,0.0002427,2]
[355173455,1740945039661,-1944.84437666,0.00024348,3]
[355173456,1740945039671,-1044.01,0.00024394,2]
[355173457,1740945039681,-250.0,0.000244,2]
[355173458,1740945039692,-525.3821,0.00024457,2]
[355173459,1740945039702,-1000.0,0.00024457,2]
[355173460,1740945039712,-2500.0,0.00024457,2]
[355173461,1740945039722,-1354.58279324,0.00024457,2]
[355173462,1740945039732,-169.97,0.00024466,2]
[355173463,1740945039742,-1044.01,0.00024519,2]
[355173464,1740945039752,-250.0,0.00024541,2]
[355173465,1740945039763,-269.173,0.00024557,2]
[355173466,1740945039772,-38556.0843,0.00024557,2]
[355173467,1740945039782,-500.0,0.00024557,2]
[355173468,1740945039792,-6685.9856,0.00024557,2]
[355173469,1740945039801,-47962.5431,0.00024557,2]
[355173470,1740945039811,-1289.5412,0.00024557,2]
[355173471,1740945039822,-2356.2935,0.00024557,2]
[355173472,1740945039831,-6235.8312,0.00024557,2]
[355173473,1740945039841,-807.2098,0.00024557,2]
[355173474,1740945039851,-2886.1977,0.00024557,2]
[355173475,1740945039861,-9231.3621,0.00024557,2]
[355173476,1740945039871,-9998.2721,0.00024557,2]
[355173477,1740945039881,-8243.2734486,0.00024557,2]
[355173478,1740945039891,-1944.84437666,0.0002459,3]
[355173479,1740945039901,-1044.01,0.00024643,2]
[355173480,1740945039910,-278.07,0.00024647,2]
[355173481,1740945039920,-501.12088741,0.00024657,2]
[355173482,1740945039930,-535.01717819,0.00024657,2]
[355173483,1740945039940,-500.0,0.00024657,2]
[355173484,1740945039951,-500.0,0.00024657,2]
[355173485,1740945039961,-500.0,0.00024657,2]
[355173486,1740945039971,-500.0,0.00024657,2]
[355173487,1740945039981,-500.0,0.00024657,2]
[355173488,1740945039991,-500.0,0.00024657,2]
[355173489,1740945040000,-500.0,0.00024657,2]
[355173490,1740945040009,-484.51,0.00024657,2]
[355173491,1740945040019,-500.0,0.00024657,2]
[355173492,1740945040029,-500.0,0.00024657,2]
[355173493,1740945040039,-485.30395412,0.00024657,2]
[355173494,1740945040048,-506.44785031,0.00024657,2]
[355173495,1740945040058,-500.0,0.00024657,2]
[355173496,1740945040069,-500.0,0.00024657,2]
[355173497,1740945040079,-500.0,0.00024657,2]
[355173498,1740945040089,-500.0,0.00024657,2]
[355173499,1740945040100,-456.38143096,0.00024657,2]
[355173500,1740945040110,-500.0,0.00024657,2]
[355173501,1740945040120,-380.92,0.00024657,2]
[355173503,1740945040129,-500.0,0.00024657,2]
[355173504,1740945040139,-330.1642005,0.00024657,2]
[355173505,1740945040149,-500.0,0.00024657,2]
[355173506,1740945040159,-500.0,0.00024657,2]
[355173507,1740945040168,-500.0,0.00024657,2]
[355173508,1740945040178,-314.87,0.00024657,2]
[355173509,1740945040188,-500.0,0.00024657,2]
[355173510,1740945040198,-500.0,0.00024657,2]
[355173511,1740945040208,-500.0,0.00024657,2]
[355173512,1740945040218,-500.0,0.00024657,2]
[355173513,1740945040228,-500.0,0.00024657,2]
[355173514,1740945040238,-500.0,0.00024657,2]
[355173515,1740945040247,-500.0,0.00024657,2]
[355173516,1740945040257,-500.0,0.00024657,2]
[355173517,1740945040268,-500.0,0.00024657,2]
[355173518,1740945040278,-500.0,0.00024657,2]
[355173519,1740945040289,-226.17,0.00024657,2]
[355173520,1740945040298,-500.0,0.00024657,2]
[355173521,1740945040308,-500.0,0.00024657,2]
[355173522,1740945040320,-500.0,0.00024657,2]
[355173523,1740945040330,-353.917026,0.00024657,2]
[355173524,1740945040339,-500.0,0.00024657,2]
[355173525,1740945040349,-500.0,0.00024657,2]
[355173526,1740945040360,-500.0,0.00024657,2]
[355173527,1740945040370,-500.0,0.00024657,2]
[355173528,1740945040380,-500.0,0.00024657,2]
[355173529,1740945040390,-500.0,0.00024657,2]
[355173530,1740945040400,-500.0,0.00024657,2]
[355173531,1740945040414,-500.0,0.00024657,2]
[355173532,1740945040423,-500.0,0.00024657,2]
[355173533,1740945040434,-500.0,0.00024657,2]
[355173534,1740945040445,-500.0,0.00024657,2]
[355173535,1740945040455,-500.0,0.00024657,2]
[355173536,1740945040465,-500.0,0.00024657,2]
[355173537,1740945040475,-232.28872799,0.00024657,2]
[355173538,1740945040485,-500.0,0.00024657,2]
[355173539,1740945040495,-500.0,0.00024657,2]
[355173540,1740945040504,-199.496843,0.00024657,2]
[355173541,1740945040514,-500.0,0.00024657,2]
[355173542,1740945040524,-488.35619813,0.00024657,2]
[355173543,1740945040534,-500.0,0.00024657,2]
[355173544,1740945040543,-500.0,0.00024657,2]
[355173545,1740945040553,-500.0,0.00024657,2]
[355173546,1740945040564,-500.0,0.00024657,2]
[355173547,1740945040573,-500.0,0.00024657,2]
[355173548,1740945040584,-500.0,0.00024657,2]
[355173549,1740945040594,-500.0,0.00024657,2]
[355173550,1740945040604,-500.0,0.00024657,2]
[355173551,1740945040614,-500.0,0.00024657,2]
[355173552,1740945040623,-204.49585861,0.00024657,2]
[355173553,1740945040633,-500.0,0.00024657,2]
[355173554,1740945040643,-500.0,0.00024657,2]
[355173555,1740945040653,-500.0,0.00024657,2]
[355173556,1740945040663,-500.0,0.00024657,2]
[355173557,1740945040673,-500.0,0.00024657,2]
[355173558,1740945040682,-424.1,0.00024657,2]
[355173559,1740945040692,-500.0,0.00024657,2]
[355173560,1740945040702,-500.0,0.00024657,2]
[355173561,1740945040712,-500.0,0.00024657,2]
[355173562,1740945040722,-500.0,0.00024657,2]
[355173563,1740945040732,-336.85369764,0.00024657,2]
[355173564,1740945040741,-500.0,0.00024657,2]
[355173565,1740945040751,-500.0,0.00024657,2]
[355173566,1740945040761,-500.0,0.00024657,2]
[355173567,1740945040770,-500.0,0.00024657,2]
[355173568,1740945040780,-500.0,0.00024657,2]
[355173569,1740945040790,-500.0,0.00024657,2]
[355173570,1740945040800,-500.0,0.00024657,2]
[355173571,1740945040810,-500.0,0.00024657,2]
[355173572,1740945040821,-500.0,0.00024657,2]
[355173573,1740945040831,-500.0,0.00024657,2]
[355173574,1740945040841,-500.0,0.00024657,2]
[355173575,1740945040851,-500.0,0.00024657,2]
[355173576,1740945040861,-500.0,0.00024657,2]
[355173577,1740945040871,-500.0,0.00024657,2]
[355173578,1740945040881,-500.0,0.00024657,2]
[355173579,1740945040890,-500.0,0.00024657,2]
[355173580,1740945040900,-500.0,0.00024657,2]
[355173581,1740945040909,-500.0,0.00024657,2]
[355173582,1740945040920,-500.0,0.00024657,2]
[355173583,1740945040930,-500.0,0.00024657,2]
[355173584,1740945040939,-719.73,0.00024657,2]
[355173585,1740945040949,-500.0,0.00024657,2]
[355173586,1740945040959,-500.0,0.00024657,2]
[355173587,1740945040969,-500.0,0.00024657,2]
[355173588,1740945040979,-500.0,0.00024657,2]
[355173589,1740945040990,-500.0,0.00024657,2]
[355173590,1740945040999,-1093.93,0.00024657,2]
[355173591,1740945041009,-500.0,0.00024657,2]
[355173592,1740945041018,-500.0,0.00024657,2]
[355173593,1740945041027,-505.66,0.00024657,2]
[355173594,1740945041036,-500.0,0.00024657,2]
[355173595,1740945041046,-500.0,0.00024657,2]
[355173596,1740945041056,-341.53,0.00024657,2]
[355173597,1740945041067,-500.0,0.00024657,2]
[355173598,1740945041077,-500.0,0.00024657,2]
[355173599,1740945041086,-500.0,0.00024657,2]
[355173600,1740945041144,-500.0,0.00024657,2]
[355173601,1740945041154,-500.0,0.00024657,2]
[355173602,1740945041164,-594.96,0.00024657,2]
[355173603,1740945041173,-500.0,0.00024657,2]
[355173604,1740945041183,-593.0,0.00024657,2]
[355173605,1740945041192,-650.42,0.00024657,2]
[355173606,1740945041202,-259.2880317,0.00024657,2]
[355173607,1740945041211,-559.89,0.00024657,2]
[355173608,1740945041221,-500.0,0.00024657,2]
[355173609,1740945041230,-500.0,0.00024657,2]
[355173610,1740945041239,-500.0,0.00024657,2]
[355173611,1740945041249,-749.59,0.00024657,2]
[355173612,1740945041258,-500.0,0.00024657,2]
[355173613,1740945041268,-500.0,0.00024657,2]
[355173614,1740945041277,-857.63,0.00024657,2]
[355173615,1740945041287,-500.0,0.00024657,2]
[355173616,1740945041296,-500.0,0.00024657,2]
[355173617,1740945041305,-500.0,0.00024657,2]
[355173618,1740945041315,-502.41665658,0.00024657,2]
[355173619,1740945041325,-500.0,0.00024657,2]
[355173620,1740945041334,-500.0,0.00024657,2]
[355173621,1740945041344,-500.0,0.00024657,2]
[355173622,1740945041355,-536.7,0.00024657,2]
[355173623,1740945041364,-500.0,0.00024657,2]
[355173624,1740945041373,-500.0,0.00024657,2]
[355173625,1740945041383,-500.0,0.00024657,2]
[355173626,1740945041392,-500.0,0.00024657,2]
[355173627,1740945041401,-901.77,0.00024657,2]
[355173628,1740945041415,-506.49,0.00024657,2]
[355173629,1740945041425,-500.0,0.00024657,2]
[355173630,1740945041434,-500.0,0.00024657,2]
[355173631,1740945041444,-500.0,0.00024657,2]
[355173632,1740945041454,-2877.75,0.00024657,2]
[355173633,1740945041463,-500.0,0.00024657,2]
[355173634,1740945041474,-509.96,0.00024657,2]
[355173635,1740945041485,-500.0,0.00024657,2]
[355173636,1740945041496,-262.24,0.00024657,2]
[355173637,1740945041506,-500.0,0.00024657,2]
[355173638,1740945041516,-500.0,0.00024657,2]
[355173639,1740945041526,-500.0,0.00024657,2]
[355173640,1740945041535,-785.07,0.00024657,2]
[355173641,1740945041545,-500.0,0.00024657,2]
[355173642,1740945041555,-500.0,0.00024657,2]
[355173643,1740945041566,-500.0,0.00024657,2]
[355173644,1740945041577,-500.0,0.00024657,2]
[355173645,1740945041587,-500.0,0.00024657,2]
[355173646,1740945041597,-500.0,0.00024657,2]
[355173647,1740945041607,-500.0,0.00024657,2]
[355173648,1740945041618,-500.0,0.00024657,2]
[355173649,1740945041627,-708.74,0.00024657,2]
[355173650,1740945041637,-500.0,0.00024657,2]
[355173651,1740945041646,-500.0,0.00024657,2]
[355173652,1740945041656,-345.21504706,0.00024657,2]
[355173653,1740945041666,-500.0,0.00024657,2]
[355173654,1740945041675,-500.0,0.00024657,2]
[355173655,1740945041685,-500.0,0.00024657,2]
[355173656,1740945041694,-500.0,0.00024657,2]
[355173657,1740945041704,-2022.86,0.00024657,2]
[355173658,1740945041713,-1256.49,0.00024657,2]
[355173659,1740945041723,-500.0,0.00024657,2]
[355173660,1740945041733,-502.85063877,0.00024657,2]
[355173661,1740945041742,-500.0,0.00024657,2]
[355173662,1740945041751,-500.0,0.00024657,2]
[355173663,1740945041762,-500.0,0.00024657,2]
[355173664,1740945041771,-500.0,0.00024657,2]
[355173665,1740945041780,-5610.36,0.00024657,2]
[355173666,1740945041790,-500.0,0.00024657,2]
[355173667,1740945041799,-500.0,0.00024657,2]
[355173668,1740945041809,-500.0,0.00024657,2]
[355173669,1740945041820,-506.93,0.00024657,2]
[355173670,1740945041830,-500.0,0.00024657,2]
[355173671,1740945041839,-500.0,0.00024657,2]
[355173672,1740945041848,-542.2,0.00024657,2]
[355173673,1740945041858,-866.41,0.00024657,2]
[355173674,1740945041868,-500.0,0.00024657,2]
[355173675,1740945041877,-500.0,0.00024657,2]
[355173676,1740945041887,-500.0,0.00024657,2]
[355173677,1740945041896,-500.0,0.00024657,2]
[355173678,1740945041906,-500.0,0.00024657,2]
[355173679,1740945041915,-950.68,0.00024657,2]
[355173680,1740945041925,-500.0,0.00024657,2]
[355173681,1740945041935,-500.0,0.00024657,2]
[355173682,1740945041944,-618.64,0.00024657,2]
[355173683,1740945041954,-500.0,0.00024657,2]
[355173684,1740945041963,-500.0,0.00024657,2]
[355173685,1740945041973,-667.13,0.00024657,2]
[355173686,1740945041982,-500.0,0.00024657,2]
[355173687,1740945041992,-500.0,0.00024657,2]
[355173688,1740945042001,-500.0,0.00024657,2]
[355173689,1740945042011,-500.0,0.00024657,2]
[355173690,1740945042020,-554.27,0.00024657,2]
[355173691,1740945042029,-705.18,0.00024657,2]
[355173692,1740945042038,-500.0,0.00024657,2]
[355173693,1740945042047,-500.0,0.00024657,2]
[355173694,1740945042056,-787.64,0.00024657,2]
[355173695,1740945042067,-564.21,0.00024657,2]
[355173696,1740945042076,-500.01,0.00024657,2]
[355173697,1740945042085,-500.0,0.00024657,2]
[355173698,1740945042094,-500.0,0.00024657,2]
[355173699,1740945042103,-500.0,0.00024657,2]
[355173700,1740945042113,-760.26,0.00024657,2]
[355173701,1740945042122,-500.0,0.00024657,2]
[355173702,1740945042131,-500.0,0.00024657,2]
[355173703,1740945042140,-500.0,0.00024657,2]
[355173704,1740945042151,-1360.86,0.00024657,2]
[355173705,1740945042160,-504.19732063,0.00024657,2]
[355173706,1740945042170,-500.0,0.00024657,2]
[355173707,1740945042179,-591.86,0.00024657,2]
[355173708,1740945042188,-500.0,0.00024657,2]
[355173709,1740945042197,-589.01,0.00024657,2]
[355173710,1740945042206,-500.0,0.00024657,2]
[355173711,1740945042216,-540.25,0.00024657,2]
[355173712,1740945042226,-921.01,0.00024657,2]
[355173714,1740945042235,-500.0,0.00024657,2]
[355173716,1740945042245,-721.37,0.00024657,2]
[355173718,1740945042255,-682.59,0.00024657,2]
[355173720,1740945042265,-628.59478209,0.00024657,2]
[355173722,1740945042274,-894.13,0.00024657,2]
[355173724,1740945042284,-500.0,0.00024657,2]
[355173726,1740945042293,-768.63,0.00024657,2]
[355173727,1740945042303,-834.9,0.00024657,2]
[355173728,1740945042313,-1090.72,0.00024657,2]
[355173730,1740945042325,-680.75,0.00024657,2]
[355173731,1740945042335,-500.0,0.00024657,2]
[355173732,1740945042345,-500.0,0.00024657,2]
[355173733,1740945042355,-283.87668371,0.00024657,2]
[355173735,1740945042364,-500.0,0.00024657,2]
[355173737,1740945042372,-573.01,0.00024657,2]
[355173739,1740945042381,-500.0,0.00024657,2]
[355173742,1740945042391,-182.57,0.00024669,2]
[355173743,1740945042402,-500.0,0.00024673,2]
[355173745,1740945042415,-1044.01,0.00024768,2]
[355173747,1740945042425,-5000.0,0.00024831,2]
[355173749,1740945042435,-317.94888762,0.00024831,2]
[355173751,1740945042444,-1944.84437666,0.00024831,4]
[355173753,1740945042455,-1044.01,0.00024892,2]
[355173755,1740945042464,-434.1607,0.000249,2]
[355173757,1740945042473,-200.0,0.000249,9]
[355173759,1740945042484,-1159.76,0.0002493,2]
[355173761,1740945042493,-1059.43,0.0002493,2]
[355173763,1740945042503,-708.05,0.0002493,2]
[355173765,1740945042513,-151.40645147,0.0002493,2]
[355173768,1740945042522,-500.0,0.0002493,2]
[355173769,1740945042531,-500.0,0.0002493,2]
[355173771,1740945042541,-500.0,0.0002493,2]
[355173773,1740945042550,-500.0,0.0002493,2]
[355173775,1740945042560,-500.0,0.0002493,2]
[355173777,1740945042570,-500.0,0.0002493,2]
[355173778,1740945042579,-500.0,0.0002493,2]
[355173779,1740945042589,-500.0,0.0002493,2]
[355173780,1740945042598,-500.0,0.0002493,2]
[355173781,1740945042607,-500.0,0.0002493,2]
[355173782,1740945042617,-469.39448066,0.0002493,2]
[355173783,1740945042628,-500.0,0.0002493,2]
[355173784,1740945042637,-500.0,0.0002493,2]
[355173785,1740945042647,-500.0,0.0002493,2]
[355173786,1740945042656,-500.0,0.0002493,2]
[355173787,1740945042666,-500.0,0.0002493,2]
[355173788,1740945042676,-500.0,0.0002493,2]
[355173789,1740945042685,-500.0,0.00024931,2]
[355173790,1740945042695,-500.0,0.00024931,2]
[355173791,1740945042704,-354.72225618,0.00024931,2]
[355173792,1740945042714,-482.80515803,0.00024931,2]
[355173793,1740945042724,-500.0,0.00024931,2]
[355173794,1740945042733,-500.0,0.00024931,2]
[355173795,1740945042742,-500.0,0.00024931,2]
[355173796,1740945042751,-401.68210477,0.00024931,2]
[355173797,1740945042761,-500.0,0.00024931,2]
[355173798,1740945042772,-308.97553831,0.00024931,2]
[355173799,1740945042782,-500.0,0.00024931,2]
[355173800,1740945042792,-281.92,0.00024931,2]
[355173801,1740945042802,-500.0,0.00024931,2]
[355173802,1740945042812,-500.0,0.00024931,2]
[355173803,1740945042824,-500.0,0.00024931,2]
[355173804,1740945042834,-500.0,0.00024931,2]
[355173805,1740945042844,-500.0,0.00024931,2]
[355173806,1740945042854,-372.56,0.00024931,2]
[355173807,1740945042863,-500.0,0.00024931,2]
[355173808,1740945042873,-500.0,0.00024931,2]
[355173809,1740945042883,-500.0,0.00024931,2]
[355173810,1740945042892,-500.0,0.00024931,2]
[355173811,1740945042903,-353.917026,0.00024931,2]
[355173812,1740945042914,-432.55,0.00024931,2]
[355173813,1740945042925,-500.0,0.00024931,2]
[355173814,1740945042935,-500.0,0.00024931,2]
[355173815,1740945042944,-500.0,0.00024931,2]
[355173816,1740945042954,-500.0,0.00024931,2]
[355173817,1740945042965,-500.0,0.00024931,2]
[355173818,1740945042975,-500.0,0.00024931,2]
[355173819,1740945042985,-500.0,0.00024931,2]
[355173820,1740945042995,-500.0,0.00024931,2]
[355173821,1740945043006,-500.0,0.00024931,2]
[355173822,1740945043015,-500.0,0.00024931,2]
[355173823,1740945043026,-500.0,0.00024931,2]
[355173824,1740945043037,-500.0,0.00024931,2]
[355173825,1740945043048,-500.0,0.00024931,2]
[355173826,1740945043059,-199.496843,0.00024931,2]
[355173828,1740945043072,-500.0,0.00024931,2]
[355173830,1740945043084,-500.0,0.00024931,2]
[355173832,1740945043095,-500.0,0.00024931,2]
[355173835,1740945043104,-500.0,0.00024931,2]
[355173837,1740945043114,-193.97,0.00024931,2]
[355173839,1740945043125,-500.0,0.00024931,2]
[355173841,1740945043136,-500.0,0.00024931,2]
[355173843,1740945043146,-500.0,0.00024931,2]
[355173845,1740945043156,-500.0,0.00024931,2]
[355173847,1740945043165,-500.0,0.00024931,2]
[355173849,1740945043175,-500.0,0.00024931,2]
[355173851,1740945043185,-500.0,0.00024931,2]
[355173853,1740945043194,-500.0,0.00024931,2]
[355173855,1740945043203,-500.0,0.00024931,2]
[355173857,1740945043212,-500.0,0.00024931,2]
[355173859,1740945043222,-500.0,0.00024931,2]
[355173860,1740945043231,-500.0,0.00024931,2]
[355173861,1740945043242,-500.0,0.00024931,2]
[355173862,1740945043251,-500.0,0.00024931,2]
[355173863,1740945043262,-379.21,0.00024931,2]
[355173864,1740945043271,-451.73587437,0.00024931,2]
[355173865,1740945043280,-500.0,0.00024931,2]
[355173866,1740945043290,-500.0,0.00024931,2]
[355173867,1740945043300,-500.0,0.00024931,2]
[355173868,1740945043310,-719.73,0.00024931,2]
[355173869,1740945043321,-500.0,0.00024931,2]
[355173870,1740945043332,-500.0,0.00024931,2]
[355173871,1740945043342,-500.0,0.00024931,2]
[355173872,1740945043352,-500.0,0.00024931,2]
[355173873,1740945043361,-500.0,0.00024931,2]
[355173874,1740945043371,-1093.93,0.00024931,2]
[355173875,1740945043381,-456.68,0.00024931,2]
[355173876,1740945043390,-500.0,0.00024931,2]
[355173877,1740945043400,-505.66,0.00024931,2]
[355173878,1740945043411,-500.0,0.00024931,2]
[355173879,1740945043423,-500.0,0.00024931,2]
[355173880,1740945043434,-500.0,0.00024931,2]
[355173881,1740945043443,-500.0,0.00024931,2]
[355173882,1740945043455,-500.0,0.00024931,2]
[355173883,1740945043464,-500.0,0.00024931,2]
[355173884,1740945043474,-500.0,0.00024931,2]
[355173885,1740945043484,-594.96,0.00024931,2]
[355173886,1740945043496,-500.0,0.00024931,2]
[355173887,1740945043507,-593.0,0.00024931,2]
[355173888,1740945043516,-650.42,0.00024931,2]
[355173889,1740945043526,-559.89,0.00024931,2]
[355173890,1740945043536,-500.0,0.00024931,2]
[355173891,1740945043546,-500.0,0.00024931,2]
[355173892,1740945043555,-500.0,0.00024931,2]
[355173893,1740945043565,-749.59,0.00024931,2]
[355173894,1740945043577,-500.0,0.00024931,2]
[355173895,1740945043586,-500.0,0.00024931,2]
[355173896,1740945043596,-857.63,0.00024931,2]
[355173897,1740945043606,-500.0,0.00024931,2]
[355173898,1740945043616,-500.0,0.00024931,2]
[355173899,1740945043625,-500.0,0.00024931,2]
[355173900,1740945043634,-500.0,0.00024931,2]
[355173901,1740945043644,-536.7,0.00024931,2]
[355173902,1740945043656,-500.0,0.00024931,2]
[355173903,1740945043665,-506.49,0.00024931,2]
[355173904,1740945043675,-901.77,0.00024931,2]
[355173905,1740945043685,-500.0,0.00024931,2]
[355173906,1740945043695,-2877.75,0.00024931,2]